Cogmind - Beta 11 X6 @@@ ROGUE MODE // 2021.07.18 @ 15:48:52 Player: Salamander Result: Core destroyed Performance ------------- Evolutions (1) 500 Regions Visited (3) 600 Robots Destroyed (43) 215 Value Destroyed (1056) 1056 Prototype IDs (7) 140 Alien Tech Used (0) 0 Bonus (7) 7 TOTAL SCORE: 2518 Bonus ------- Follower Combat Kills 7 Cogmind --------- Core Integrity 0/400 Matter 153/300 Energy 265/265 System Corruption 4% Temperature Critical (683) Movement Walking (200) Ox1 Location -9/Materials Parts ------- > --- POWER (1) -------- Improved Ion Engine > --- PROPULSION (3) --- Aluminum Leg Carbon-fiber Leg Carbon-fiber Leg > --- UTILITY (3) ------ Improved Heat Sink Large Storage Unit Hardened Light Armor Plating > --- WEAPON (2) ------- Beam Rifle Particle Gun > --- INVENTORY (15) --- Light Nuclear Core Carbon-fiber Leg Improved Heat Sink Medium Storage Unit Medium Matter Pod (100) Advanced Weight Redist. System Improved Propulsion Shielding Light Armor Plating Light Armor Plating Thief Drone Bay (3/3) Shock Rifle Particle Gun Assault Rifle Rocket Launcher Peak State ------------ > --- POWER ------------ Light Nuclear Core > --- PROPULSION ------- Carbon-fiber Leg Carbon-fiber Leg Carbon-fiber Leg > --- UTILITY ---------- Heat Sink Improved Heat Sink Large Storage Unit > --- WEAPON ----------- Particle Gun Improved Medium Laser > --- INVENTORY -------- Light Nuclear Core Aluminum Leg Aluminum Leg Improved Heat Sink Improved Heat Sink Medium Storage Unit Medium Matter Pod Advanced Weight Redist. System Improved Propulsion Shielding Thief Drone Bay Shock Rifle Particle Gun Assault Rifle Light Assault Rifle Rocket Launcher [Rating: 25] Favorites ----------- Power Light Nuclear Core Engine Ion Engine Power Core Light Nuclear Core Propulsion Carbon-fiber Leg Treads Light Treads Leg Carbon-fiber Leg Hover Unit Aerolev Unit Utility Improved Heat Sink Device Improved Heat Sink Storage Large Storage Unit Protection Light Armor Plating Weapon Particle Gun Energy Gun Particle Gun Ballistic Gun Assault Rifle Build | -11 -10 -10 -9 ------- Run | Scr Mat Min Mat Slots Evolved 2 | . . . 2 Power . | . . . . Propulsion 1 | . . . 1 Utility 1 | . . . 1 Weapon . | . . . . Parts Attached 44 | 7 6 8 23 Power 6 | 1 1 1 3 Engine 3 | 1 . . 2 Core 3 | . 1 1 1 Reactor . | . . . . Propulsion 14 | 2 . 3 9 Treads 1 | . . . 1 Leg 12 | 2 . 3 7 Wheel . | . . . . Hover 1 | . . . 1 Flight . | . . . . Utility 12 | 2 3 2 5 Device 6 | 1 1 2 2 Storage 3 | 1 2 . . Processor . | . . . . Hackware . | . . . . Protection 3 | . . . 3 Artifact . | . . . . Weapon 12 | 2 2 2 6 Energy Gun 9 | 1 1 1 6 Energy Cannon . | . . . . Ballistic Gun 3 | 1 1 1 . Ballistic Cannon . | . . . . Launcher . | . . . . Special Weapon . | . . . . Impact Weapon . | . . . . Slashing Weapon . | . . . . Piercing Weapon . | . . . . Special Melee Weapon . | . . . . Unidentified Prototypes 3 | . . 1 2 Parts Lost 8 | . 1 2 5 Power 2 | . . 1 1 Propulsion 2 | . . . 2 Utility 3 | . 1 . 2 Weapon 1 | . . 1 . Highest Loss Streak 2 | . 1 2 2 Average Slot Usage (%) 99 | . 100 99 97 Engine 1 | . 2 . 3 Core 10 | . 11 14 6 Leg 29 | . 28 27 32 Device 13 | . 14 14 12 Storage 12 | . 14 14 11 Protection 3 | . . . 9 Energy Gun 21 | . 26 14 21 Ballistic Gun 4 | . 1 13 . Naked Turns . | . . . . Heaviest Build 39 | 14 31 31 39 Greatest Support 45 | 20 20 30 45 Greatest Overweight (x) 12 | 2 1 1 12 Average Overweight (x) . | . . . . Largest Inventory Capacity 15 | 8 15 15 15 Average Capacity 13 | 7 12 15 15 Most Carried 15 | 8 15 15 15 Average Carried 13 | 6 11 14 14 Final Capacity 15 | 8 15 15 15 Final Carried 15 | 8 15 15 14 Class Distribution -------------------- 61% | Scavenger-Mutant 38% | Mutant Dominant Class ---------------- Mutant | -10/Materials Scavenger-Mutant | -10/Mines Scavenger-Mutant | -9/Materials Resources | -11 -10 -10 -9 ----------- Run | Scr Mat Min Mat Matter Collected 816 | 285 178 134 219 Remotely . | . . . . Salvage Created 1639 | 156 402 114 967 Parts 92 | 14 25 12 41 Haulers Intercepted . | . . . . Recyclers Shooed 3 | . 1 . 2 Parts Field Recycled . | . . . . Retrieved Matter . | . . . . Parts Self-Destructed . | . . . . Prevented . | . . . . Kills | -11 -10 -10 -9 ------- Run | Scr Mat Min Mat Combat Hostiles Destroyed 31 | . 9 4 18 Guns 28 | . 9 4 15 Classes Destroyed 7 | 3 3 . 1 Worker 1 | 1 . . . Tunneler 3 | 3 . . . Recycler 5 | 1 1 . 3 Watcher 3 | . 1 . 2 Swarmer 8 | . 3 2 3 Grunt 18 | . 6 2 10 Sentry 5 | . . . 5 Best Kill Streak 6 | 2 3 2 6 Combat Bots Only 6 | . 3 2 6 Max Kills in Single Turn 2 | 1 1 1 2 Gunslinging 1 | . . . 1 Exploded . | . . . . Melee . | . . . . Uniques/NPCs Destroyed . | . . . . Combat | -11 -10 -10 -9 -------- Run | Scr Mat Min Mat Damage Taken 2067 | . 437 213 1417 Core 584 | . 73 66 445 Absorbed by Shields . | . . . . Core Remaining (%) 72 | 100 . 44 . Volleys Fired 136 | 15 41 13 67 Largest 2 | 2 2 2 2 Hottest 121 | 70 115 115 121 Shots Fired 266 | 30 77 28 131 Gun 266 | 30 77 28 131 Cannon . | . . . . Launcher . | . . . . Special . | . . . . Kinetic 37 | 15 10 12 . Thermal 229 | 15 67 16 131 Explosive . | . . . . Electromagnetic . | . . . . Robot Hit Streak 12 | 12 4 7 10 Robot Miss Streak 5 | 2 5 4 4 Penetration Max . | . . . . Secondary Targets 6 | . 2 . 4 Max Gunslinging Chain 1 | . 1 . 1 Shots Hit Robots 161 | 20 41 17 83 Core Hits 61 | 8 20 5 28 Critical Kills 1 | . . 1 . Critical Parts Destroyed . | . . . . Critical Strikes 9 | . 1 1 7 Burn 8 | . 1 . 7 Destroy 1 | . . 1 . Melee Attacks . | . . . . Impact . | . . . . Slashing . | . . . . Piercing . | . . . . Sneak Attacks . | . . . . Combat Hostiles . | . . . . Follow-up Attacks . | . . . . Damage Inflicted 2428 | 217 523 304 1384 Guns 2428 | 217 523 304 1384 Cannons . | . . . . Explosions . | . . . . Melee . | . . . . Ramming . | . . . . Kinetic 261 | 79 55 127 . Thermal 2167 | 138 468 177 1384 Explosive . | . . . . Electromagnetic . | . . . . Impact . | . . . . Slashing . | . . . . Piercing . | . . . . Highest Corruption 7 | . 7 7 4 Average Corruption 4 | . 2 7 3 Corruption Purged . | . . . . Effects 52 | . 10 24 18 Message Errors 16 | . 5 6 5 Matter Fused 13 | . 1 8 4 Heat Flow Errors 5 | . 3 . 2 Energy Discharges 9 | . 1 4 4 Data Loss (minor) 6 | . . 3 3 Data Loss (major) 1 | . . 1 . Misfires 2 | . . 2 . Overload Shots . | . . . . Overflow Damage . | . . . . Projectiles . | . . . . Explosions . | . . . . Melee . | . . . . Knockbacks . | . . . . Impact . | . . . . Kinetic . | . . . . Secondary . | . . . . Self-Inflicted Damage . | . . . . Shots . | . . . . Rammed . | . . . . Targets Rammed . | . . . . Kicked . | . . . . Crushed . | . . . . Highest Temperature 683 | 160 278 87 683 Average Temperature 96 | 68 101 37 104 Received Heat Transfer 861 | . 276 117 468 Effects 14 | . . . 14 Shutdowns 1 | . . . 1 Interference 3 | . . . 3 Matter Decay 2 | . . . 2 Short Circuit 1 | . . . 1 Damage (minor) 1 | . . . 1 Damage (major) 3 | . . . 3 Damage (core) 3 | . . . 3 Siege Activations . | . . . . Robots Corrupted . | . . . . Combat Hostiles . | . . . . Parts Fried . | . . . . Impact Corruptions . | . . . . Robots Melted 3 | . . . 3 Combat Hostiles 3 | . . . 3 Parts Melted 15 | 1 3 1 10 Heat Transferred 5883 | 407 1332 444 3700 Parts Sabotaged . | . . . . Parts Stolen . | . . . . Parts Stripped . | . . . . Power Chain Reactions . | . . . . Missiles Intercepted . | . . . . Alert | -11 -10 -10 -9 ------- Run | Scr Mat Min Mat Peak Influence 307 | 25 236 103 307 Initial 20 | . 16 20 . Average 92 | 10 108 33 139 Maximum Alert Level 1 | . 1 . 1 Low Security (%) 88 | 100 98 100 66 Level 1 11 | . 1 . 33 Level 2 . | . . . . Level 3 . | . . . . Level 4 . | . . . . Level 5 . | . . . . High Security . | . . . . Max Security . | . . . . Squads Dispatched 4 | . . 1 3 Investigation 4 | . . 1 3 Extermination . | . . . . Reinforcement . | . . . . Assault . | . . . . Garrison . | . . . . Intercept . | . . . . Construction Impeded . | . . . . Haulers Reinforced . | . . . . Active Scanning Responses . | . . . . Cargo Convoy Interrupts . | . . . . Stealth | -11 -10 -10 -9 --------- Run | Scr Mat Min Mat Distress Signals 1 | . . . 1 Communications Jammed . | . . . . Distress Signals . | . . . . Times Spotted 61 | . 17 8 36 Peak Tracking Total 5 | . 3 3 5 Tactical Retreats . | . . . . Traps | -11 -10 -10 -9 ------- Run | Scr Mat Min Mat Traps Triggered 7 | . 5 . 2 Indirectly . | . . . . Trap Hack Attempts . | . . . . Triggered . | . . . . Disarmed . | . . . . Reprogrammed . | . . . . Reused . | . . . . Traps Extracted . | . . . . Installed . | . . . . Triggered . | . . . . Machines | -11 -10 -10 -9 ---------- Run | Scr Mat Min Mat Machines Disabled . | . . . . Max in Single Turn . | . . . . Machines Sabotaged . | . . . . Garrisons Compromised . | . . . . Overloaded Fab Kills . | . . . . Fab Network Shutdowns . | . . . . Hacking | -11 -10 -10 -9 --------- Run | Scr Mat Min Mat Machines Accessed 21 | . 8 3 10 Terminals 17 | . 8 1 8 Fabricators . | . . . . Repair Stations 1 | . . . 1 Recycling Units . | . . . . Scanalyzers 1 | . . . 1 Garrison Access . | . . . . Total Hacks 80 | . 38 4 38 Successful 47 | . 23 4 20 Failed 33 | . 15 . 18 Catastrophic 4 | . 2 . 2 Database Lockouts . | . . . . Manual 54 | . 29 2 23 Terminals 71 | . 38 2 31 Fabricators . | . . . . Repair Stations 3 | . . . 3 Recycling Units . | . . . . Scanalyzers 4 | . . . 4 Garrison Access . | . . . . Terminal Hacks 16 | . 11 3 2 Robot Analysis 3 | . 3 . . Prototype ID Bank 3 | . 3 . . Open Door 2 | . . 2 . Branch Access Points 1 | . 1 . . Locate Traps 2 | . 1 1 . Hauler Manifests 2 | . 1 . 1 Zone Layout 3 | . 2 . 1 Fabricator Hacks . | . . . . Repair Station Hacks 2 | . . . 2 Scan Component 1 | . . . 1 Repair 1 | . . . 1 Recycling Unit Hacks . | . . . . Scanalyzer 4 | . . . 4 Insert Component 2 | . . . 2 Analyze 2 | . . . 2 Garrison Access Hacks . | . . . . Unauthorized Hacks 25 | . 12 1 12 Terminals 25 | . 12 1 12 Track 11 | . 6 1 4 Assimilate 1 | . . . 1 Botnet 9 | . 5 . 4 Disrupt 2 | . . . 2 Operators 2 | . 1 . 1 Fabricators . | . . . . Repair Stations . | . . . . Recycling Units . | . . . . Scanalyzers . | . . . . Garrison Access . | . . . . Data Cores Recovered . | . . . . Used . | . . . . Hacking Detections 19 | . 8 1 10 Full Trace Events 5 | . 2 . 3 Feedback Events . | . . . . Feedback Blocked . | . . . . Robot Schematics Acquired . | . . . . Robots Built . | . . . . Matter . | . . . . Time . | . . . . Total Robot Build Rating . | . . . . Part Schematics Acquired 2 | . . . 2 Parts Built . | . . . . Matter . | . . . . Time . | . . . . Total Part Build Rating . | . . . . Parts Repaired 1 | . . . 1 Time 38 | . . . 38 Parts Recycled . | . . . . Recycled Matter . | . . . . Retrieved Matter . | . . . . Retrieved Components . | . . . . Parts Scanalyzed 2 | . . . 2 Part Schematics Acquired 2 | . . . 2 Parts Damaged . | . . . . Bothacking | -11 -10 -10 -9 ------------ Run | Scr Mat Min Mat Used RIF Installer . | . . . . Robots Hacked . | . . . . Non-combat . | . . . . Combat . | . . . . Robot Hacks Applied . | . . . . Relay Couplers Released . | . . . . Robots Rewired . | . . . . Allies Hacked . | . . . . Hacks Repelled . | . . . . Allies | -11 -10 -10 -9 -------- Run | Scr Mat Min Mat Total Allies 2 | . . 1 1 Largest Group 1 | . . 1 1 Highest-Rated Group 31 | . . 31 10 Highest-Rated Ally 31 | . . 31 10 Total Orders . | . . . . Ally Attacks 4 | . . 4 . Total Damage 63 | . . 63 . Kills 1 | . . 1 . Allies Corrupted . | . . . . Allies Melted . | . . . . Intel | -11 -10 -10 -9 ------- Run | Scr Mat Min Mat Robot Analysis Total 3 | . 3 . . Derelict Logs Recovered 1 | . . 1 . Drone Launches . | . . . . Drone Recoveries . | . . . . Exploration | -11 -10 -10 -9 ------------- Run | Scr Mat Min Mat Turns Passed 3198 | 131 1086 941 1040 Spaces Moved 1657 | 59 519 486 593 Core 15 | 14 . . 1 Treads . | . . . . Legs 1642 | 45 519 486 592 Wheels . | . . . . Hover . | . . . . Flight . | . . . . Fastest Speed 50 | 50 120 120 120 Average Speed 157 | 118 181 181 121 Slowest Speed 650 | 150 200 200 650 Overloaded Moves . | . . . . Propulsion Burnouts . | . . . . Robots Hopped . | . . . . Cave-ins Triggered . | . . . . Exploration Rate (%) 61 | 3 83 90 68 Regions Visited 3 Branch Regions 1 Pre-discovered Areas 1 | . . 1 . Known Exits Taken 1 | . 1 . . Unknown Exits Taken 2 | 1 . 1 . Scrap Searched 1 | . . 1 . Spaces Dug . | . . . . Terrain Destroyed . | . . . . Melee . | . . . . Projectile . | . . . . AOE . | . . . . Terrain Rammed . | . . . . Walls Destroyed . | . . . . Machines Disabled . | . . . . Actions | -11 -10 -10 -9 --------- Run | Scr Mat Min Mat Total 1996 | 90 593 529 784 Wait 78 | . 5 . 73 Move 1654 | 58 518 485 593 Hop . | . . . . Pick Up 44 | 9 14 11 10 Fast Attach 24 | 7 1 3 13 Attach 10 | . 1 3 6 Detach . | . . . . Swap 10 | . 4 2 4 Drop 40 | 1 9 12 18 Fire 136 | 15 41 13 67 Melee . | . . . . Ram . | . . . . Kick . | . . . . Crush . | . . . . Escape Stasis . | . . . . Rewire . | . . . . Trap . | . . . . Miscellaneous . | . . . . Route ------- -11/Scrapyard -10/Materials (discovered 4 exits: *Mat x3 / *Min) -10/Mines (discovered 3 exits: *Mat x2 / [*Exi]) -9/Materials (discovered 3 exits: [*Mat x2] / [*Min]) History --------- Turn | Location | Event 19 | -11/Scrapyard | Discovered new exit (range 15) 132 | -11/Scrapyard | Entered Materials 161 | -10/Materials | Discovered new exit (range 14) 271 | -10/Materials | Identified exit to Mines 338 | -10/Materials | Build established: Mutant 384 | -10/Materials | Discovered new exit (range 13) 612 | -10/Materials | Discovered new exit (range 16) 813 | -10/Materials | Discovered new exit (range 15) 1218 | -10/Materials | Entered Mines 1233 | -10/Mines | Escorted by a lone wolf Derelict 1374 | -10/Mines | Discovered new exit (range 8) 1405 | -10/Mines | Core integrity fell below 50% 1435 | -10/Mines | Discovered new exit (range 16) 1438 | -10/Mines | Found the Drone Emporium 1448 | -10/Mines | Found Prototype Device 1449 | -10/Mines | Identified Thief Drone Bay 1517 | -10/Mines | Build established: Scavenger-Mutant 1594 | -10/Mines | Received a Rocket Launcher from a helpful Derelict 1681 | -10/Mines | Learned location of Recycling (-8) 1729 | -10/Mines | Deemed a non-threat by the Exiles lab entrance 1729 | -10/Mines | Discovered new exit (range 5) 1938 | -10/Mines | Met a Derelict shopkeep closing up shop 2159 | -10/Mines | Entered Materials 2159 | -9/Materials | Evolved 2 slots: Propulsion x1, Utility x1 2534 | -9/Materials | Discovered new exit (range 13) 2593 | -9/Materials | Repaired Carbon-fiber Leg 2778 | -9/Materials | Discovered new exit (range 5) 2954 | -9/Materials | Core integrity fell below 50% 3060 | -9/Materials | Discovered new exit (range 15) 3197 | -9/Materials | Core integrity fell below 20% 3200 | -9/Materials | Core destroyed Last Messages --------------- 03188_ G-47 Trooper overheating. 03190_ G-34 Mercenary destroyed. 03190_ Switching to secondary target: G-47 Trooper. 03190_ G-47 Trooper overheating. 03193_ G-47 Trooper heat damages Imp. Heat Sink, Aluminum Leg. 03193_ G-47 Trooper overheating. 03194_ Overheating: Lrg. Storage Unit damaged (-191). 03194_ Overheating: Imp. Ion Engine damaged (-6). 03194_ Overheating: Broken Carbon-fiber Leg damaged (-10). 03195_ Overheating: System interference. 03195_ Imp. Heat Sink temporarily disabled. 03195_ Particle Gun temporarily disabled. 03195_ Imp. Heat Sink temporarily disabled. 03196_ Destroyed Lgt. Nuclear Core. 03196_ G-47 Trooper overheating. 03197_ Overheating: Core damaged (-76). 03197_ R-06 Scavenger collects Ion Engine. 03198_ Overheating: Matter decay (-46). 03199_ Overheating: Matter decay (-48). 03200_ Overheating: Core damaged (-68). Map ----- +----------------------------------------------------+ | ??# ## ## #??#####+#####?# | | ?#######+#### t## #??????# #?#####+ | | # ??# #??# ## """ ##?????# #?# = | | # ""??# #?## ## """ # ## #?#! ! | | # """## ### # """ # | | # """# # | / """" | | # + T # # """" | | # """# # ##### ###### """" | | # """# ## ! ## #???###+##???######## | | # ""?# #### #### #????????????# ! | | # ?# #??# #??# #????????????# | | ?###??# ####+#### #????????????# | | ??????# ## # #????????????# """ | | ?????? # # #????????????# """ | | ?????# # # #????????????# """ | | ?????# # """ +^^^ ###??????????# """ | | ?????# # """ # ^^ ^+??????????# """ | | ?????# # """ # ####??????????# | | ?????############## #?##########???####### | | ????????# |/ # # #?????????? | | ????????# / # # ##########? | | ????????# + + # #? | | ????????+ # # # """"" #? | | ????????# """"" # o# # """"" ]## | | ????????# """"" # ############ """"" # | | ????????????"""""%r@ #????????# + | | ????????# !% # #????????# """ # | | ????????######+##/#g #????????# "T # | | ?????????????# ? ? #????????# """ % # | | ?????????????#? ? ##+####????????# # | | ?????????????? ?? ???????????????########## | | ????????????? ? ?????????????????????????# | | ????????????##??#?????????????????????????# | | ??????????????????????????????????????????# | | ??????????????????????????????????????????# | | ??????????????????????????????????????????# | | ?????????????????????????????????????????## | | ?????????????????????????????????????????#T | | ?????????????????????????????????????????## | | ?????????????????????????????????????????#T | | ?????????????????????????????????????????## | | ??????????????????????????????????????????# | | ??????????????????????????????????????????# | | ?????????????????????????????????########## | | ?????????????????????????????????# ## | | ?????????????????????????????????# " ##= | | ?????????????????????????????????# "" ## | | ?????????????????????????????????# "" # | | ?????????????????????????????????# """ # | | ?????????????????????????????????# "" + " | +----------------------------------------------------+ Best States ------------- Heat Dissipation 52 Energy Generation 14 Energy Capacity 265 Matter Stores 300 Matter Capacity 300 Sight Range 16 Terrain Scan Range 16 Terrain Scan Density 10 Armor Coverage 150 Evasion (%) 55 Item Schematics ----------------- Imp. Propulsion Shielding | -9/Materials | Scanalyzed Lgt. Nuclear Core | -9/Materials | Scanalyzed Robot Schematics ------------------ None Fabricated ------------ Nothing Alien Tech Used ----------------- None Achievements -------------- None Challenges ------------ None Game ------ Seed VisualMasterAutohacker Manual? 0 Play Time 00:26:05 Cumulative 93.4 hours Start 2021.07.18 @ 15:25:07 End 2021.07.18 @ 15:48:52 Sessions 1 Manual Loads 0 Difficulty Rogue Special Mode None Game No. 77 Rogue 5 Adventurer 72 Explorer 0 Win Type - Total 4 Types 2/0/1/0/0/0/0/1/0 Lore% 65 Gallery% 68 Achievement% 66 Wizard Run 0 Options --------- ASCII 0 Keyboard 0 Movement Mouse Keybinds 0 Fullscreen 1 Font 12/Smallcaps Map View 83x54 Tactical HUD 1 Map Filters NONE Filters NONE Steam 1 RUN: 8a9447bb-b384-4c33-9a66-06dbfc5450f7